[Event "Titled Tuesday Blitz July 25 Early 2023"]
[White "ATM622"]
[Black "rionelG"]
[WhiteElo "2509"]
[BlackElo "2304"]
[Result "1-0"]
[Round "5"]
[TimeControl "180+2"]
[Date "2023.07.25"]
[WhiteClock "0:00:09"]
[BlackClock "0:00:10"]
[Board "142"]

1. d4 {[%clk 0:02:58]}  Nf6 {[%clk 0:02:59]} 2. c4 {[%clk 0:02:59]}  g6 {[%clk 0:03:00]} 3. g3 {[%clk 0:02:57]}  Bg7 {[%clk 0:03:00]} 4. Bg2 {[%clk 0:02:56]}  O-O {[%clk 0:03:01]} 5. Nf3 {[%clk 0:02:56]}  d6 {[%clk 0:03:01]} 6. O-O {[%clk 0:02:57]}  Nc6 {[%clk 0:03:02]} 7. Nc3 {[%clk 0:02:57]}  a6 {[%clk 0:03:02]} 8. b3 {[%clk 0:02:56]}  Rb8 {[%clk 0:03:00]} 9. Bb2 {[%clk 0:02:55]}  b5 {[%clk 0:03:00]} 10. cxb5 {[%clk 0:02:47]}  axb5 {[%clk 0:03:00]} 11. Rc1 {[%clk 0:02:48]}  Na5 {[%clk 0:02:56]} 12. Re1 {[%clk 0:02:41]}  b4 {[%clk 0:02:48]} 13. Nb1 {[%clk 0:02:32]}  Bb7 {[%clk 0:02:42]} 14. Nbd2 {[%clk 0:02:25]}  Ne4 {[%clk 0:02:32]} 15. Nxe4 {[%clk 0:02:23]}  Bxe4 {[%clk 0:02:31]} 16. Ng5 {[%clk 0:02:20]}  Bxg2 {[%clk 0:02:28]} 17. Kxg2 {[%clk 0:02:20]}  e5 {[%clk 0:02:19]} 18. Nh3 {[%clk 0:02:15]}  exd4 {[%clk 0:01:35]} 19. Bxd4 {[%clk 0:02:16]}  c5 {[%clk 0:01:35]} 20. Bxg7 {[%clk 0:02:13]}  Kxg7 {[%clk 0:01:36]} 21. Nf4 {[%clk 0:02:10]}  Qf6 {[%clk 0:01:14]} 22. e4 {[%clk 0:02:03]}  Nc6 {[%clk 0:01:09]} 23. Qg4 {[%clk 0:01:40]}  Qe5 {[%clk 0:00:51]} 24. Rcd1 {[%clk 0:01:32]}  h5 {[%clk 0:00:47]} 25. Qd7 {[%clk 0:01:27]}  Nd4 {[%clk 0:00:47]} 26. Nd5 {[%clk 0:01:20]}  Ra8 {[%clk 0:00:42]} 27. Rd2 {[%clk 0:01:12]}  Ra3 {[%clk 0:00:37]} 28. f4 {[%clk 0:00:57]}  Qe6 {[%clk 0:00:37]} 29. Qb7 {[%clk 0:00:25]}  Qg4 {[%clk 0:00:19]} 30. Re3 {[%clk 0:00:21]}  h4 {[%clk 0:00:19]} 31. Qe7 {[%clk 0:00:13]}  Rfa8 {[%clk 0:00:18]} 32. Qf6+ {[%clk 0:00:12]}  Kg8 {[%clk 0:00:15]} 33. Qxd6 {[%clk 0:00:11]}  h3+ {[%clk 0:00:13]} 34. Kf1 {[%clk 0:00:11]}  Kg7 {[%clk 0:00:12]} 35. Qe5+ {[%clk 0:00:10]}  Kf8 {[%clk 0:00:10]} 36. Qh8# {[%clk 0:00:09]} 1-0


[Site "https://www.chess.com"]

[Event "Titled Tuesday Blitz July 25 Early 2023"]
[White "Kaplan, Avi Harrison"]
[Black "Zaksaite, Salomeja"]
[WhiteFideId "30934559"]
[BlackFideId "12801496"]
[WhiteElo "2509"]
[BlackElo "2296"]
[Result "1-0"]
[Round "5"]
[TimeControl "180+2"]
[Date "2023.07.25"]
[WhiteClock "0:00:50"]
[BlackClock "0:01:32"]
[Board "143"]

1. h3 {[%clk 0:02:52]}  e5 {[%clk 0:02:58]} 2. a3 {[%clk 0:02:52]}  d5 {[%clk 0:02:58]} 3. c4 {[%clk 0:02:45]}  Nf6 {[%clk 0:02:51]} 4. d3 {[%clk 0:02:40]}  dxc4 {[%clk 0:02:43]} 5. Qa4+ {[%clk 0:02:38]}  Nc6 {[%clk 0:02:43]} 6. Qxc4 {[%clk 0:02:38]}  Be7 {[%clk 0:02:43]} 7. Nf3 {[%clk 0:02:37]}  O-O {[%clk 0:02:42]} 8. g3 {[%clk 0:02:36]}  Be6 {[%clk 0:02:40]} 9. Qc2 {[%clk 0:02:34]}  Bd5 {[%clk 0:02:35]} 10. e4 {[%clk 0:02:18]}  Be6 {[%clk 0:02:35]} 11. Be2 {[%clk 0:02:15]}  h6 {[%clk 0:02:33]} 12. g4 {[%clk 0:02:14]}  Nh7 {[%clk 0:02:20]} 13. b4 {[%clk 0:02:09]}  Ng5 {[%clk 0:02:14]} 14. Nbd2 {[%clk 0:02:02]}  Nd4 {[%clk 0:02:04]} 15. Nxd4 {[%clk 0:01:57]}  Qxd4 {[%clk 0:02:05]} 16. Bb2 {[%clk 0:01:56]}  Qd6 {[%clk 0:02:03]} 17. h4 {[%clk 0:01:55]}  Nh7 {[%clk 0:02:01]} 18. g5 {[%clk 0:01:56]}  hxg5 {[%clk 0:01:45]} 19. hxg5 {[%clk 0:01:56]}  Bxg5 {[%clk 0:01:44]} 20. d4 {[%clk 0:01:53]}  exd4 {[%clk 0:01:35]} 21. e5 {[%clk 0:01:54]}  Qxe5 {[%clk 0:01:32]} 22. Qxh7# {[%clk 0:00:50]} 1-0


[Site "https://www.chess.com"]

[Event "Titled Tuesday Blitz July 25 Early 2023"]
[White "Berezin, Viktor"]
[Black "Mishra, Manoj"]
[WhiteFideId "14107872"]
[BlackFideId "5006007"]
[WhiteElo "2502"]
[BlackElo "2186"]
[Result "0-1"]
[Round "5"]
[TimeControl "180+2"]
[Date "2023.07.25"]
[WhiteClock "0:00:08"]
[BlackClock "0:00:03"]
[Board "149"]

1. d4 {[%clk 0:03:00]}  Nf6 {[%clk 0:02:58]} 2. Nf3 {[%clk 0:03:00]}  g6 {[%clk 0:02:55]} 3. g3 {[%clk 0:03:00]}  Bg7 {[%clk 0:02:55]} 4. Bg2 {[%clk 0:03:00]}  O-O {[%clk 0:02:56]} 5. O-O {[%clk 0:03:01]}  d6 {[%clk 0:02:56]} 6. a4 {[%clk 0:03:00]}  Nbd7 {[%clk 0:02:55]} 7. a5 {[%clk 0:03:01]}  e5 {[%clk 0:02:54]} 8. a6 {[%clk 0:02:59]}  e4 {[%clk 0:02:52]} 9. Ng5 {[%clk 0:02:59]}  d5 {[%clk 0:02:51]} 10. axb7 {[%clk 0:02:59]}  Bxb7 {[%clk 0:02:51]} 11. c4 {[%clk 0:03:00]}  h6 {[%clk 0:02:49]} 12. Nh3 {[%clk 0:02:59]}  g5 {[%clk 0:02:47]} 13. cxd5 {[%clk 0:02:58]}  Bxd5 {[%clk 0:02:46]} 14. Nc3 {[%clk 0:02:58]}  c6 {[%clk 0:02:44]} 15. f3 {[%clk 0:02:53]}  exf3 {[%clk 0:02:28]} 16. exf3 {[%clk 0:02:52]}  Qb6 {[%clk 0:02:07]} 17. Nf2 {[%clk 0:02:49]}  Bc4 {[%clk 0:01:57]} 18. Re1 {[%clk 0:02:46]}  Nd5 {[%clk 0:01:57]} 19. Nxd5 {[%clk 0:02:27]}  Bxd5 {[%clk 0:01:47]} 20. Be3 {[%clk 0:02:25]}  Qxb2 {[%clk 0:01:45]} 21. Ne4 {[%clk 0:02:14]}  Rfb8 {[%clk 0:01:32]} 22. f4 {[%clk 0:01:54]}  Qxg2+ {[%clk 0:01:24]} 23. Kxg2 {[%clk 0:01:50]}  Bxe4+ {[%clk 0:01:24]} 24. Kg1 {[%clk 0:01:50]}  Rb2 {[%clk 0:01:23]} 25. Bf2 {[%clk 0:01:50]}  f5 {[%clk 0:01:18]} 26. Rc1 {[%clk 0:01:08]}  Nf6 {[%clk 0:01:02]} 27. fxg5 {[%clk 0:00:53]}  Ng4 {[%clk 0:00:49]} 28. Re2 {[%clk 0:00:36]}  Bf3 {[%clk 0:00:37]} 29. Rxb2 {[%clk 0:00:36]}  Bxd1 {[%clk 0:00:36]} 30. Rxd1 {[%clk 0:00:37]}  Nxf2 {[%clk 0:00:34]} 31. Kxf2 {[%clk 0:00:37]}  c5 {[%clk 0:00:34]} 32. Kf3 {[%clk 0:00:30]}  Bxd4 {[%clk 0:00:33]} 33. Rb7 {[%clk 0:00:25]}  hxg5 {[%clk 0:00:33]} 34. h4 {[%clk 0:00:24]}  gxh4 {[%clk 0:00:28]} 35. gxh4 {[%clk 0:00:25]}  a5 {[%clk 0:00:27]} 36. Rd3 {[%clk 0:00:15]}  a4 {[%clk 0:00:27]} 37. Ra3 {[%clk 0:00:15]}  Bf6 {[%clk 0:00:14]} 38. h5 {[%clk 0:00:13]}  Kh8 {[%clk 0:00:14]} 39. Kf4 {[%clk 0:00:13]}  Bh4 {[%clk 0:00:09]} 40. Kxf5 {[%clk 0:00:11]}  Be1 {[%clk 0:00:09]} 41. Re3 {[%clk 0:00:08]}  Bh4 {[%clk 0:00:07]} 42. Ra3 {[%clk 0:00:05]}  Be1 {[%clk 0:00:07]} 43. Kg6 {[%clk 0:00:03]}  c4 {[%clk 0:00:06]} 44. Re7 {[%clk 0:00:02]}  Bb4 {[%clk 0:00:07]} 45. Rae3 {[%clk 0:00:01]}  Bxe7 {[%clk 0:00:07]} 46. Rxe7 {[%clk 0:00:02]}  a3 {[%clk 0:00:07]} 47. Re2 {[%clk 0:00:02]}  a2 {[%clk 0:00:07]} 48. h6 {[%clk 0:00:01]}  a1=Q {[%clk 0:00:06]} 49. Re6 {[%clk 0:00:01]}  Qg1+ {[%clk 0:00:06]} 50. Kh5 {[%clk 0:00:02]}  Qh2+ {[%clk 0:00:06]} 51. Kg6 {[%clk 0:00:02]}  Rg8+ {[%clk 0:00:05]} 52. Kf7 {[%clk 0:00:03]}  Qf4+ {[%clk 0:00:04]} 53. Ke7 {[%clk 0:00:03]}  Qg5+ {[%clk 0:00:04]} 54. Kd7 {[%clk 0:00:03]}  Rg6 {[%clk 0:00:04]} 55. Re8+ {[%clk 0:00:03]}  Kh7 {[%clk 0:00:04]} 56. Re7+ {[%clk 0:00:03]}  Qxe7+ {[%clk 0:00:03]} 57. Kxe7 {[%clk 0:00:04]}  c3 {[%clk 0:00:04]} 58. Kf7 {[%clk 0:00:04]}  c2 {[%clk 0:00:03]} 59. Ke7 {[%clk 0:00:05]}  Rxh6 {[%clk 0:00:03]} 60. Kf7 {[%clk 0:00:06]}  c1=Q {[%clk 0:00:04]} 61. Ke7 {[%clk 0:00:06]}  Qd2 {[%clk 0:00:03]} 62. Kf7 {[%clk 0:00:07]}  Rh2 {[%clk 0:00:03]} 63. Ke7 {[%clk 0:00:07]}  Qe1+ {[%clk 0:00:03]} 64. Kf7 {[%clk 0:00:08]}  Rf2# {[%clk 0:00:03]} 0-1


[Site "https://www.chess.com"]

[Event "Titled Tuesday Blitz July 25 Early 2023"]
[White "Feliz Dotel, Dewar Bienvenido"]
[Black "Ginzburg, Yakov"]
[WhiteFideId "6402801"]
[BlackFideId "4157176"]
[WhiteElo "2085"]
[BlackElo "2500"]
[Result "1/2-1/2"]
[Round "5"]
[TimeControl "180+2"]
[Date "2023.07.25"]
[WhiteClock "0:00:05"]
[BlackClock "0:00:03"]
[Board "150"]

1. d4 {[%clk 0:02:59]}  Nf6 {[%clk 0:02:58]} 2. e3 {[%clk 0:02:59]}  e6 {[%clk 0:02:57]} 3. Nf3 {[%clk 0:02:59]}  c5 {[%clk 0:02:56]} 4. Bd3 {[%clk 0:02:57]}  b6 {[%clk 0:02:55]} 5. b3 {[%clk 0:02:51]}  Bb7 {[%clk 0:02:54]} 6. Bb2 {[%clk 0:02:51]}  Be7 {[%clk 0:02:54]} 7. Nbd2 {[%clk 0:02:50]}  O-O {[%clk 0:02:54]} 8. O-O {[%clk 0:02:51]}  Nc6 {[%clk 0:02:54]} 9. a3 {[%clk 0:02:50]}  d6 {[%clk 0:02:52]} 10. Qe2 {[%clk 0:02:48]}  Rc8 {[%clk 0:02:48]} 11. Rfd1 {[%clk 0:02:48]}  Qc7 {[%clk 0:02:47]} 12. Rac1 {[%clk 0:02:47]}  Qb8 {[%clk 0:02:47]} 13. Ba6 {[%clk 0:02:41]}  Rfd8 {[%clk 0:02:45]} 14. Bxb7 {[%clk 0:02:40]}  Qxb7 {[%clk 0:02:45]} 15. c4 {[%clk 0:02:36]}  cxd4 {[%clk 0:02:27]} 16. exd4 {[%clk 0:02:28]}  d5 {[%clk 0:02:27]} 17. Ne5 {[%clk 0:02:21]}  dxc4 {[%clk 0:02:15]} 18. Nxc6 {[%clk 0:02:04]}  Qxc6 {[%clk 0:02:11]} 19. bxc4 {[%clk 0:02:03]}  Qa4 {[%clk 0:02:10]} 20. Qf3 {[%clk 0:01:38]}  b5 {[%clk 0:02:01]} 21. Qb7 {[%clk 0:01:24]}  Bxa3 {[%clk 0:01:39]} 22. Ra1 {[%clk 0:01:22]}  b4 {[%clk 0:01:37]} 23. c5 {[%clk 0:01:00]}  Qd7 {[%clk 0:01:17]} 24. Qxd7 {[%clk 0:00:47]}  Rxd7 {[%clk 0:01:18]} 25. Bxa3 {[%clk 0:00:47]}  bxa3 {[%clk 0:01:17]} 26. Nc4 {[%clk 0:00:46]}  a2 {[%clk 0:01:07]} 27. Nd6 {[%clk 0:00:44]}  Rb8 {[%clk 0:01:01]} 28. Rxa2 {[%clk 0:00:44]}  Ne8 {[%clk 0:00:58]} 29. Nxe8 {[%clk 0:00:44]}  Rxe8 {[%clk 0:00:57]} 30. f3 {[%clk 0:00:43]}  Red8 {[%clk 0:00:55]} 31. Rad2 {[%clk 0:00:41]}  Rd5 {[%clk 0:00:52]} 32. c6 {[%clk 0:00:35]}  Rc8 {[%clk 0:00:49]} 33. Rc1 {[%clk 0:00:33]}  Kf8 {[%clk 0:00:45]} 34. Kf2 {[%clk 0:00:31]}  Rd6 {[%clk 0:00:38]} 35. Ra2 {[%clk 0:00:21]}  Rdxc6 {[%clk 0:00:33]} 36. Rxc6 {[%clk 0:00:20]}  Rxc6 {[%clk 0:00:33]} 37. Rxa7 {[%clk 0:00:20]}  Rc2+ {[%clk 0:00:33]} 38. Kg3 {[%clk 0:00:21]}  Rd2 {[%clk 0:00:31]} 39. Ra4 {[%clk 0:00:19]}  Ke7 {[%clk 0:00:30]} 40. h4 {[%clk 0:00:19]}  h5 {[%clk 0:00:30]} 41. f4 {[%clk 0:00:17]}  Kd6 {[%clk 0:00:13]} 42. Kf3 {[%clk 0:00:15]}  g6 {[%clk 0:00:11]} 43. g4 {[%clk 0:00:15]}  hxg4+ {[%clk 0:00:11]} 44. Kxg4 {[%clk 0:00:15]}  Kd5 {[%clk 0:00:11]} 45. Kg5 {[%clk 0:00:13]}  Rxd4 {[%clk 0:00:09]} 46. Ra7 {[%clk 0:00:12]}  f5 {[%clk 0:00:07]} 47. Rd7+ {[%clk 0:00:10]}  Ke4 {[%clk 0:00:05]} 48. Rxd4+ {[%clk 0:00:10]}  Kxd4 {[%clk 0:00:06]} 49. Kxg6 {[%clk 0:00:10]}  e5 {[%clk 0:00:06]} 50. fxe5 {[%clk 0:00:10]}  f4 {[%clk 0:00:06]} 51. e6 {[%clk 0:00:11]}  f3 {[%clk 0:00:07]} 52. e7 {[%clk 0:00:12]}  f2 {[%clk 0:00:07]} 53. e8=Q {[%clk 0:00:12]}  f1=Q {[%clk 0:00:08]} 54. Qh8+ {[%clk 0:00:12]}  Kd5 {[%clk 0:00:07]} 55. Qg8+ {[%clk 0:00:12]}  Kc5 {[%clk 0:00:07]} 56. Qf7 {[%clk 0:00:11]}  Qg2+ {[%clk 0:00:06]} 57. Kh7 {[%clk 0:00:10]}  Qe4+ {[%clk 0:00:04]} 58. Qg6 {[%clk 0:00:07]}  Qxh4+ {[%clk 0:00:04]} 59. Kg8 {[%clk 0:00:07]}  Kd5 {[%clk 0:00:03]} 60. Qf7+ {[%clk 0:00:06]}  Ke5 {[%clk 0:00:03]} 61. Qg7+ {[%clk 0:00:06]}  Ke6 {[%clk 0:00:02]} 62. Qf7+ {[%clk 0:00:05]}  Kd6 {[%clk 0:00:02]} 63. Qf8+ {[%clk 0:00:05]}  Kd7 {[%clk 0:00:02]} 64. Qg7+ {[%clk 0:00:05]}  Qe7 {[%clk 0:00:02]} 65. Qxe7+ {[%clk 0:00:05]}  Kxe7 {[%clk 0:00:03]} 1/2-1/2


[Site "https://www.chess.com"]

[Event "Titled Tuesday Blitz July 25 Early 2023"]
[White "Molina, Roberto Junio Brito"]
[Black "ivana_999"]
[WhiteFideId "2109450"]
[WhiteElo "2864"]
[BlackElo "2065"]
[Result "1-0"]
[Round "5"]
[TimeControl "180+2"]
[Date "2023.07.25"]
[WhiteClock "0:00:17"]
[BlackClock "0:00:00"]
[Board "152"]

1. d4 {[%clk 0:03:00]}  Nf6 {[%clk 0:02:59]} 2. Nf3 {[%clk 0:02:59]}  d5 {[%clk 0:02:57]} 3. e3 {[%clk 0:03:00]}  c5 {[%clk 0:02:57]} 4. c3 {[%clk 0:02:59]}  Nc6 {[%clk 0:02:58]} 5. Nbd2 {[%clk 0:02:59]}  Bg4 {[%clk 0:02:57]} 6. Qa4 {[%clk 0:02:59]}  Bxf3 {[%clk 0:02:48]} 7. Nxf3 {[%clk 0:02:58]}  Nd7 {[%clk 0:02:45]} 8. Bb5 {[%clk 0:02:49]}  Qc7 {[%clk 0:02:44]} 9. O-O {[%clk 0:02:32]}  e6 {[%clk 0:02:43]} 10. c4 {[%clk 0:02:28]}  dxc4 {[%clk 0:02:31]} 11. Qxc4 {[%clk 0:02:18]}  a6 {[%clk 0:02:25]} 12. Qa4 {[%clk 0:02:10]}  Rc8 {[%clk 0:02:13]} 13. Be2 {[%clk 0:02:00]}  Be7 {[%clk 0:01:59]} 14. Rd1 {[%clk 0:01:53]}  O-O {[%clk 0:01:35]} 15. Bd2 {[%clk 0:01:45]}  Bf6 {[%clk 0:01:30]} 16. Rac1 {[%clk 0:01:41]}  Nb6 {[%clk 0:01:15]} 17. Qb3 {[%clk 0:01:33]}  cxd4 {[%clk 0:01:05]} 18. exd4 {[%clk 0:01:05]}  Nd5 {[%clk 0:00:59]} 19. g3 {[%clk 0:00:43]}  Rfd8 {[%clk 0:00:57]} 20. Be3 {[%clk 0:00:37]}  Qe7 {[%clk 0:00:52]} 21. a3 {[%clk 0:00:36]}  b5 {[%clk 0:00:40]} 22. Bd3 {[%clk 0:00:31]}  h6 {[%clk 0:00:35]} 23. Be4 {[%clk 0:00:30]}  Na5 {[%clk 0:00:33]} 24. Qd3 {[%clk 0:00:28]}  Nxe3 {[%clk 0:00:20]} 25. fxe3 {[%clk 0:00:28]}  Nc4 {[%clk 0:00:19]} 26. Qe2 {[%clk 0:00:27]}  Nd6 {[%clk 0:00:18]} 27. Bd3 {[%clk 0:00:26]}  Qb7 {[%clk 0:00:17]} 28. Bb1 {[%clk 0:00:20]}  Rxc1 {[%clk 0:00:16]} 29. Rxc1 {[%clk 0:00:20]}  Rc8 {[%clk 0:00:17]} 30. Rf1 {[%clk 0:00:21]}  Ne4 {[%clk 0:00:15]} 31. Qd3 {[%clk 0:00:21]}  Nd6 {[%clk 0:00:10]} 32. e4 {[%clk 0:00:20]}  Be7 {[%clk 0:00:08]} 33. e5 {[%clk 0:00:19]}  Nf5 {[%clk 0:00:07]} 34. g4 {[%clk 0:00:19]}  g6 {[%clk 0:00:02]} 35. gxf5 {[%clk 0:00:19]}  gxf5 {[%clk 0:00:03]} 36. d5 {[%clk 0:00:18]}  Kh7 {[%clk 0:00:02]} 37. d6 {[%clk 0:00:18]}  Rg8+ {[%clk 0:00:01]} 38. Kh1 {[%clk 0:00:17]}  Bh4 {[%clk 0:00:00]} 39. Rg1 {[%clk 0:00:17]} 1-0


[Site "https://www.chess.com"]

[Event "Titled Tuesday Blitz July 25 Early 2023"]
[White "SmirnovAlexandrA"]
[Black "Rahman, Masruri"]
[BlackFideId "7101163"]
[WhiteElo "2433"]
[BlackElo "2750"]
[Result "1-0"]
[Round "5"]
[TimeControl "180+2"]
[Date "2023.07.25"]
[WhiteClock "0:00:26"]
[BlackClock "0:00:00"]
[Board "153"]

1. e4 {[%clk 0:02:54]}  e6 {[%clk 0:03:00]} 2. d4 {[%clk 0:02:54]}  d5 {[%clk 0:03:00]} 3. Nc3 {[%clk 0:02:55]}  Bb4 {[%clk 0:02:59]} 4. Ne2 {[%clk 0:02:50]}  Nc6 {[%clk 0:02:57]} 5. a3 {[%clk 0:02:50]}  Bxc3+ {[%clk 0:02:52]} 6. Nxc3 {[%clk 0:02:50]}  dxe4 {[%clk 0:02:53]} 7. Bb5 {[%clk 0:02:44]}  Ne7 {[%clk 0:02:45]} 8. Nxe4 {[%clk 0:02:43]}  Qd5 {[%clk 0:02:45]} 9. Qe2 {[%clk 0:02:31]}  O-O {[%clk 0:02:36]} 10. c3 {[%clk 0:02:30]}  Nf5 {[%clk 0:02:26]} 11. Bd3 {[%clk 0:02:20]}  e5 {[%clk 0:02:20]} 12. O-O {[%clk 0:02:09]}  exd4 {[%clk 0:02:18]} 13. Bf4 {[%clk 0:02:09]}  Qd8 {[%clk 0:02:09]} 14. Rad1 {[%clk 0:02:06]}  Be6 {[%clk 0:02:07]} 15. Ng5 {[%clk 0:01:52]}  Qf6 {[%clk 0:02:02]} 16. Rfe1 {[%clk 0:01:52]}  Bb3 {[%clk 0:01:47]} 17. Rd2 {[%clk 0:01:51]}  h6 {[%clk 0:01:24]} 18. Ne4 {[%clk 0:01:42]}  Qh4 {[%clk 0:01:14]} 19. g3 {[%clk 0:01:39]}  Qe7 {[%clk 0:01:10]} 20. Qg4 {[%clk 0:01:27]}  Be6 {[%clk 0:01:08]} 21. Qh5 {[%clk 0:01:26]}  g6 {[%clk 0:00:58]} 22. Qd1 {[%clk 0:01:22]}  Rfe8 {[%clk 0:00:29]} 23. c4 {[%clk 0:01:22]}  Rad8 {[%clk 0:00:24]} 24. h4 {[%clk 0:01:18]}  Kg7 {[%clk 0:00:18]} 25. Rde2 {[%clk 0:01:14]}  Qf8 {[%clk 0:00:16]} 26. b4 {[%clk 0:01:13]}  Rd7 {[%clk 0:00:14]} 27. Qc1 {[%clk 0:01:07]}  Kh7 {[%clk 0:00:12]} 28. b5 {[%clk 0:01:06]}  Na5 {[%clk 0:00:11]} 29. Qd2 {[%clk 0:01:04]}  Qg7 {[%clk 0:00:08]} 30. Qxa5 {[%clk 0:01:02]}  b6 {[%clk 0:00:07]} 31. Qd2 {[%clk 0:00:58]}  Rde7 {[%clk 0:00:08]} 32. Kg2 {[%clk 0:00:58]}  Bc8 {[%clk 0:00:06]} 33. f3 {[%clk 0:00:55]}  Bb7 {[%clk 0:00:05]} 34. Nf2 {[%clk 0:00:55]}  Rxe2 {[%clk 0:00:01]} 35. Rxe2 {[%clk 0:00:56]}  Rxe2 {[%clk 0:00:01]} 36. Qxe2 {[%clk 0:00:57]}  Qf6 {[%clk 0:00:02]} 37. Ng4 {[%clk 0:00:53]}  Nxh4+ {[%clk 0:00:02]} 38. Kh3 {[%clk 0:00:49]}  Bc8 {[%clk 0:00:02]} 39. Be5 {[%clk 0:00:43]}  Qe7 {[%clk 0:00:01]} 40. gxh4 {[%clk 0:00:42]}  h5 {[%clk 0:00:01]} 41. Bg3 {[%clk 0:00:30]}  hxg4+ {[%clk 0:00:02]} 42. fxg4 {[%clk 0:00:30]}  Qxa3 {[%clk 0:00:03]} 43. h5 {[%clk 0:00:26]}  Kg7 {[%clk 0:00:01]} 44. hxg6 {[%clk 0:00:26]}  fxg6 {[%clk 0:00:02]} 45. Qe5+ {[%clk 0:00:26]}  Kh7 {[%clk 0:00:01]} 46. Qxc7+ {[%clk 0:00:26]}  Kh6 {[%clk 0:00:00]} 47. Bf4+ {[%clk 0:00:26]} 1-0


[Site "https://www.chess.com"]

[Event "Titled Tuesday Blitz July 25 Early 2023"]
[White "Valgmae, Toomas"]
[Black "Sagita, Catur Adi"]
[WhiteFideId "4502523"]
[BlackFideId "7104618"]
[WhiteElo "2426"]
[BlackElo "2634"]
[Result "1-0"]
[Round "5"]
[TimeControl "180+2"]
[Date "2023.07.25"]
[WhiteClock "0:00:16"]
[BlackClock "0:00:04"]
[Board "155"]

1. d4 {[%clk 0:03:00]}  Nf6 {[%clk 0:02:57]} 2. c4 {[%clk 0:03:01]}  e6 {[%clk 0:02:55]} 3. Nc3 {[%clk 0:03:01]}  Bb4 {[%clk 0:02:54]} 4. Qc2 {[%clk 0:03:02]}  c5 {[%clk 0:02:53]} 5. dxc5 {[%clk 0:03:01]}  Nc6 {[%clk 0:02:47]} 6. a3 {[%clk 0:03:01]}  Bxc5 {[%clk 0:02:46]} 7. b4 {[%clk 0:03:00]}  Bb6 {[%clk 0:02:42]} 8. Nf3 {[%clk 0:02:52]}  d5 {[%clk 0:02:42]} 9. c5 {[%clk 0:02:50]}  Bc7 {[%clk 0:02:42]} 10. e3 {[%clk 0:02:50]}  O-O {[%clk 0:02:42]} 11. Bb2 {[%clk 0:02:48]}  e5 {[%clk 0:02:39]} 12. Rd1 {[%clk 0:02:47]}  Be6 {[%clk 0:02:35]} 13. Be2 {[%clk 0:02:44]}  a6 {[%clk 0:02:33]} 14. O-O {[%clk 0:02:44]}  h6 {[%clk 0:02:34]} 15. Rd2 {[%clk 0:02:35]}  Qb8 {[%clk 0:02:33]} 16. Rfd1 {[%clk 0:02:34]}  e4 {[%clk 0:02:33]} 17. Nd4 {[%clk 0:02:31]}  Bxh2+ {[%clk 0:02:33]} 18. Kh1 {[%clk 0:02:32]}  Nxd4 {[%clk 0:02:32]} 19. Rxd4 {[%clk 0:02:30]}  Be5 {[%clk 0:02:28]} 20. R4d2 {[%clk 0:02:30]}  Qe8 {[%clk 0:02:23]} 21. Na4 {[%clk 0:02:14]}  Bxb2 {[%clk 0:02:20]} 22. Nxb2 {[%clk 0:02:15]}  Rd8 {[%clk 0:02:16]} 23. Na4 {[%clk 0:02:14]}  Nd7 {[%clk 0:02:09]} 24. Nc3 {[%clk 0:02:08]}  Nf6 {[%clk 0:02:07]} 25. Kg1 {[%clk 0:02:03]}  h5 {[%clk 0:01:57]} 26. Rd4 {[%clk 0:02:02]}  h4 {[%clk 0:01:57]} 27. Qd2 {[%clk 0:01:54]}  Qe7 {[%clk 0:01:49]} 28. Na4 {[%clk 0:01:31]}  g6 {[%clk 0:01:49]} 29. Nb6 {[%clk 0:01:31]}  Kg7 {[%clk 0:01:48]} 30. Qc3 {[%clk 0:01:20]}  Kh7 {[%clk 0:01:40]} 31. a4 {[%clk 0:01:18]}  Qc7 {[%clk 0:01:36]} 32. b5 {[%clk 0:01:15]}  axb5 {[%clk 0:01:36]} 33. axb5 {[%clk 0:01:16]}  Qe5 {[%clk 0:01:36]} 34. c6 {[%clk 0:01:12]}  bxc6 {[%clk 0:01:35]} 35. bxc6 {[%clk 0:01:13]}  Rd6 {[%clk 0:01:32]} 36. Qc5 {[%clk 0:01:06]}  Rb8 {[%clk 0:01:20]} 37. Rb1 {[%clk 0:01:03]}  Bg4 {[%clk 0:00:49]} 38. Bf1 {[%clk 0:00:58]}  h3 {[%clk 0:00:47]} 39. g3 {[%clk 0:00:56]}  h2+ {[%clk 0:00:47]} 40. Kh1 {[%clk 0:00:33]}  Bf3+ {[%clk 0:00:44]} 41. Bg2 {[%clk 0:00:33]}  Qh5 {[%clk 0:00:40]} 42. Qxd6 {[%clk 0:00:28]}  Qh3 {[%clk 0:00:40]} 43. Bxf3 {[%clk 0:00:21]}  Rxb6 {[%clk 0:00:40]} 44. Rbd1 {[%clk 0:00:17]}  Rb2 {[%clk 0:00:25]} 45. Qxf6 {[%clk 0:00:16]}  Rxf2 {[%clk 0:00:25]} 46. Qxf7+ {[%clk 0:00:15]}  Kh6 {[%clk 0:00:25]} 47. Qf8+ {[%clk 0:00:14]}  Kh7 {[%clk 0:00:26]} 48. Rxd5 {[%clk 0:00:14]}  Rf1+ {[%clk 0:00:10]} 49. Rxf1 {[%clk 0:00:14]}  Qxf1+ {[%clk 0:00:11]} 50. Kxh2 {[%clk 0:00:15]}  Qf2+ {[%clk 0:00:12]} 51. Kh3 {[%clk 0:00:15]}  Qf1+ {[%clk 0:00:04]} 52. Kg4 {[%clk 0:00:16]} 1-0


[Site "https://www.chess.com"]

[Event "Titled Tuesday Blitz July 25 Early 2023"]
[White "Krzywda, Andrzej"]
[Black "Goryachkina, Aleksandra"]
[WhiteFideId "1114565"]
[BlackFideId "4147103"]
[WhiteElo "2416"]
[BlackElo "2629"]
[Result "1-0"]
[Round "5"]
[TimeControl "180+2"]
[Date "2023.07.25"]
[WhiteClock "0:02:10"]
[BlackClock "0:00:00"]
[Board "156"]

1. e4 {[%clk 0:02:55]}  e6 {[%clk 0:02:59]} 2. d4 {[%clk 0:02:55]}  d5 {[%clk 0:02:40]} 3. Nc3 {[%clk 0:02:55]}  Nf6 {[%clk 0:02:34]} 4. e5 {[%clk 0:02:55]}  Nfd7 {[%clk 0:02:34]} 5. f4 {[%clk 0:02:55]}  c5 {[%clk 0:02:34]} 6. Nf3 {[%clk 0:02:56]}  Nc6 {[%clk 0:02:33]} 7. Be3 {[%clk 0:02:56]}  a6 {[%clk 0:02:33]} 8. a3 {[%clk 0:02:56]}  b5 {[%clk 0:02:28]} 9. dxc5 {[%clk 0:02:50]}  Bxc5 {[%clk 0:02:26]} 10. Qd2 {[%clk 0:02:42]}  Qb6 {[%clk 0:02:06]} 11. Bf2 {[%clk 0:02:38]}  O-O {[%clk 0:02:03]} 12. Bd3 {[%clk 0:02:36]}  h6 {[%clk 0:01:55]} 13. O-O {[%clk 0:02:33]}  f6 {[%clk 0:01:45]} 14. exf6 {[%clk 0:02:30]}  Nxf6 {[%clk 0:01:36]} 15. Bxc5 {[%clk 0:02:14]}  Qxc5+ {[%clk 0:01:37]} 16. Kh1 {[%clk 0:02:13]}  Bd7 {[%clk 0:00:00]} 17. Rae1 {[%clk 0:02:10]} 1-0


[Site "https://www.chess.com"]